bitfinex-derivatives/quotes_BTCF0:USTF0_20241103
["timestamp","ask_amount","ask_price","bid_price","bid_amount"]
[1730651537359,0.3658,68357.0,68356.0,0.073172]
[1730651537863,0.3718,68357.0,68356.0,0.074172]
[1730651538064,0.3668,68357.0,68356.0,0.074172]
[1730651538367,0.44397,68357.0,68356.0,0.001]
[1730651538562,0.073172,68356.0,68345.0,0.073183]
[1730651538863,0.45903388,68346.0,68337.0,0.3608]
[1730651539057,0.073189,68342.0,68341.0,0.073187]
[1730651540656,0.073189,68342.0,68333.0,0.00219473]
[1730651540657,0.073188,68341.0,68335.0,0.073193]
[1730651540954,0.53222688,68336.0,68335.0,0.073193]
[1730651542361,0.53222688,68336.0,68335.0,0.082193]
[1730651542362,0.434993,68336.0,68335.0,0.082193]
[1730651543258,0.45130049,68336.0,68335.0,0.089193]
[1730651546357,0.54953437,68336.0,68335.0,0.016]
[1730651550275,1.02886137,68336.0,68320.0,0.04292736]
[1730651550561,1.02886137,68336.0,68316.0,0.05723648]
[1730651550562,0.073212,68318.0,68317.0,0.04292736]
[1730651550764,0.47432,68321.0,68316.0,0.073214]
[1730651550968,0.073219,68312.0,68311.0,0.073219]
[1730651551164,0.434019,68312.0,68311.0,0.073219]
[1730651551666,0.073223,68308.0,68307.0,0.073223]
[1730651552073,0.073226,68305.0,68300.0,0.1]
[1730651552367,0.07323,68301.0,68300.0,0.1]
[1730651552562,0.43403,68301.0,68300.0,0.173232]
[1730651552763,0.43403,68301.0,68300.0,0.1]
[1730651552957,0.43403,68301.0,68300.0,0.0501]
[1730651553479,0.87327,68301.0,68300.0,0.0501]
[1730651554158,0.80104,68301.0,68279.0,0.04304549]
[1730651554362,0.80104,68301.0,68279.0,0.073254]
[1730651554363,0.434053,68280.0,68279.0,0.073254]
[1730651555079,0.3608,68280.0,68279.0,0.073254]
[1730651556565,0.3618,68280.0,68279.0,0.073254]
[1730651556781,0.3628,68280.0,68279.0,0.073254]
[1730651557277,0.002,68280.0,68279.0,0.512614]
[1730651557465,0.3608,68286.0,68285.0,0.073248]
[1730651558465,0.80012,68286.0,68276.0,0.073257]
[1730651558665,0.53228988,68277.0,68276.0,0.073257]
[1730651558881,0.36075934,68277.0,68276.0,0.073257]
[1730651559177,0.3608,68278.0,68271.0,0.00219691]
[1730651559386,0.3608,68278.0,68277.0,0.073256]
[1730651560077,0.434055,68278.0,68277.0,0.073256]
[1730651560275,0.434055,68278.0,68276.0,0.074256]
[1730651560276,0.073256,68277.0,68276.0,0.074256]
[1730651560572,0.09823388,68277.0,68276.0,0.074256]
[1730651560771,0.3618,68278.0,68277.0,0.073256]
[1730651560971,0.3628,68278.0,68277.0,0.075256]
[1730651562466,0.3618,68278.0,68277.0,0.073256]
[1730651562672,0.434055,68278.0,68277.0,0.073256]
[1730651562868,0.435055,68278.0,68277.0,0.073256]
[1730651563494,0.3628,68278.0,68277.0,0.074256]
[1730651564177,0.436055,68278.0,68277.0,0.074256]
[1730651564374,0.3628,68278.0,68277.0,0.074256]
[1730651565679,0.002,68278.0,68277.0,0.074256]
[1730651566576,0.002,68278.0,68277.0,0.29304277]
[1730651566879,0.002,68278.0,68277.0,0.074256]
[1730651567983,0.075255,68278.0,68277.0,0.074256]
[1730651568173,0.075255,68278.0,68277.0,0.001]
[1730651568974,0.514655,68278.0,68277.0,0.001]
[1730651570783,0.002,68278.0,68277.0,0.074256]
[1730651571285,0.075255,68278.0,68277.0,0.074256]
[1730651572075,0.002,68278.0,68277.0,0.074256]
[1730651572985,0.09823388,68289.0,68285.0,0.073248]
[1730651574079,0.434047,68286.0,68285.0,0.073248]
[1730651574781,0.3608,68286.0,68285.0,0.073248]
[1730651575983,0.435047,68286.0,68285.0,0.002]
[1730651576577,0.435047,68286.0,68285.0,0.075248]
[1730651577182,0.436047,68286.0,68285.0,0.077248]
[1730651577386,0.875367,68286.0,68285.0,0.077248]
[1730651577580,0.875367,68286.0,68285.0,0.004]
[1730651577882,0.073253,68281.0,68272.0,0.0327]
[1730651578077,0.09823388,68273.0,68272.0,0.0327]
[1730651578274,0.09823388,68273.0,68272.0,0.105962]
[1730651578991,0.09823388,68273.0,68272.0,0.107962]
[1730651580294,0.3608,68274.0,68273.0,0.073261]
[1730651581190,0.3608,68280.0,68279.0,0.073254]
[1730651581391,0.3608,68286.0,68285.0,0.073248]
[1730651581578,0.3608,68286.0,68285.0,0.11645923]
[1730651581774,0.3608,68286.0,68285.0,0.073248]
[1730651581991,0.00219723,68294.0,68293.0,0.073239]
[1730651582488,0.00219723,68294.0,68293.0,0.57010514]
[1730651582789,0.00219723,68294.0,68293.0,0.13082514]
[1730651582992,0.3608,68296.0,68295.0,0.073237]
[1730651583881,0.3608,68296.0,68295.0,0.11642028]
[1730651584188,0.3608,68296.0,68295.0,0.073237]
[1730651584383,0.3618,68296.0,68295.0,0.11642081]
[1730651584697,0.3618,68296.0,68295.0,0.073237]
[1730651584992,0.3608,68296.0,68295.0,0.073237]
[1730651585383,0.3109,68296.0,68295.0,0.55568918]
[1730651585587,0.09823388,68317.0,68313.0,0.073218]
[1730651585588,0.3608,68314.0,68313.0,0.073218]
[1730651587594,0.448017,68314.0,68313.0,0.073218]
[1730651587791,0.462017,68314.0,68313.0,0.073218]
[1730651587984,0.101217,68314.0,68313.0,0.073218]
[1730651590380,0.07322,68311.0,68309.0,0.073222]
[1730651590715,0.12973388,68310.0,68296.0,0.39328]
[1730651590990,0.028,68314.0,68313.0,0.073218]
[1730651591388,0.014,68314.0,68313.0,0.073218]
[1730651591804,0.3608,68315.0,68314.0,0.073217]
[1730651593587,0.434015,68315.0,68314.0,0.073217]
[1730651593786,0.3608,68315.0,68304.0,0.3608]
[1730651593990,0.09823388,68305.0,68304.0,0.434027]
[1730651595199,0.10523388,68305.0,68304.0,0.434027]
[1730651596688,0.10523388,68305.0,68304.0,0.073227]
[1730651597089,0.11123388,68305.0,68304.0,0.073227]
[1730651597995,0.18445988,68305.0,68304.0,0.073227]
[1730651599892,0.073231,68301.0,68300.0,0.073231]
[1730651600095,0.17146488,68301.0,68300.0,0.073231]
[1730651600603,0.17146488,68301.0,68289.0,0.04526731]
[1730651600604,0.89827388,68301.0,68289.0,0.00219641]
[1730651600800,0.09823388,68290.0,68289.0,0.00219641]
[1730651600986,0.17147588,68290.0,68289.0,0.07543941]
[1730651601493,0.17147588,68290.0,68289.0,0.00219641]
[1730651602103,0.18447588,68290.0,68289.0,0.00219641]
[1730651602489,0.07325,68283.0,68282.0,0.07325]
[1730651602804,0.17148388,68283.0,68282.0,0.07325]
[1730651603698,0.17148388,68283.0,68278.0,0.073255]
[1730651603699,0.073254,68279.0,68278.0,0.073255]
[1730651603909,0.21175388,68283.0,68272.0,0.3608]
[1730651604200,0.09823388,68273.0,68267.0,0.00219714]
[1730651604401,0.073269,68265.0,68261.0,0.0430709]
[1730651604589,0.073269,68265.0,68258.0,0.0001757]
[1730651604786,0.073269,68265.0,68260.0,0.073274]
[1730651604992,0.073269,68265.0,68258.0,0.0001757]
[1730651605307,0.09823388,68260.0,68255.0,0.3608]
[1730651605494,0.09823388,68260.0,68259.0,0.173276]
[1730651605987,0.3608,68262.0,68259.0,0.1]
[1730651606193,0.3608,68262.0,68261.0,0.073273]
[1730651606400,0.3608,68262.0,68259.0,0.1]
[1730651606706,0.073274,68260.0,68259.0,0.173276]
[1730651607002,0.3608,68262.0,68261.0,0.073273]
[1730651607399,0.37623159,68262.0,68261.0,0.073273]
[1730651608301,0.01543159,68262.0,68261.0,0.073273]
[1730651608506,0.073272,68263.0,68261.0,0.073273]
[1730651608694,0.002,68262.0,68261.0,0.073273]
[1730651609605,0.3608,68268.0,68267.0,0.073267]
[1730651610104,0.073268,68266.0,68263.0,0.073271]
[1730651611105,0.07327,68264.0,68260.0,0.073274]
[1730651611396,0.002,68262.0,68260.0,0.073274]
[1730651611797,0.001,68262.0,68260.0,0.073274]
[1730651612004,0.074273,68262.0,68260.0,0.073274]
[1730651612205,0.3608,68262.0,68259.0,0.1]
[1730651612409,0.22110676,68260.0,68259.0,0.1]
[1730651612800,0.66058676,68260.0,68259.0,0.1]
[1730651613816,0.073284,68252.0,68247.0,0.00219768]
[1730651613999,0.073284,68252.0,68249.0,0.073286]
[1730651614203,0.11352,68253.0,68247.0,0.00219768]
[1730651614503,0.073287,68248.0,68247.0,0.07548568]
[1730651614704,0.14783276,68251.0,68247.0,0.00219768]
[1730651614902,0.14783276,68251.0,68249.0,0.073286]
[1730651615403,0.22111676,68251.0,68250.0,0.073285]
[1730651615797,0.14783276,68251.0,68247.0,0.00219768]
[1730651616003,0.073295,68241.0,68237.0,0.073299]
[1730651616207,0.11352,68240.0,68221.0,0.3608]
[1730651616509,0.22113576,68233.0,68228.0,0.13072242]
[1730651618019,0.22113576,68233.0,68229.0,0.073307]
[1730651618313,0.22213576,68233.0,68229.0,0.073307]
[1730651618505,0.23742271,68233.0,68229.0,0.073307]
[1730651618708,0.23742271,68233.0,68221.0,0.3608]
[1730651618908,0.002,68233.0,68221.0,0.3608]
[1730651619115,0.002,68233.0,68232.0,0.073305]
[1730651620321,0.95031276,68233.0,68213.0,0.3933]
[1730651620507,0.073319,68219.0,68216.0,0.073322]
[1730651620708,0.434111,68226.0,68216.0,0.073322]
[1730651620709,0.14783276,68217.0,68216.0,0.073322]
[1730651621615,0.11352,68222.0,68213.0,0.39414]
[1730651621826,0.001,68219.0,68213.0,0.3608]
[1730651622011,0.001,68217.0,68213.0,0.3608]
[1730651622215,0.001,68217.0,68216.0,0.073322]
[1730651624315,0.002,68217.0,68216.0,0.073322]
[1730651624712,0.002,68217.0,68216.0,1.09483059]
[1730651625815,0.52374954,68232.0,68216.0,1.09483059]
[1730651626013,0.52374954,68232.0,68231.0,0.073306]
[1730651626818,0.52374954,68232.0,68231.0,0.434106]
[1730651626819,0.01511678,68232.0,68231.0,0.434106]
[1730651627022,0.002,68232.0,68231.0,0.073306]
[1730651628219,0.14983276,68232.0,68231.0,0.073306]
[1730651629417,0.16488003,68232.0,68231.0,0.073306]
[1730651633522,0.01704727,68232.0,68231.0,0.073306]
[1730651634023,0.11564497,68232.0,68231.0,0.073306]
[1730651638726,0.11564497,68232.0,68225.0,0.0314]
[1730651638917,0.0985977,68226.0,68225.0,0.104712]
[1730651639918,0.0985977,68226.0,68225.0,0.105712]
[1730651640430,0.0995977,68226.0,68225.0,0.105712]
[1730651640629,0.0995977,68226.0,68225.0,0.104712]
[1730651640830,0.1005977,68226.0,68225.0,0.105712]
[1730651641538,0.1005977,68226.0,68225.0,0.074312]
[1730651641714,0.1005977,68226.0,68224.0,0.31773606]
[1730651641715,0.29953294,68226.0,68224.0,0.31773606]
[1730651641921,0.19893524,68225.0,68224.0,0.39104906]
[1730651642122,0.19893524,68225.0,68224.0,0.2296559]
[1730651643136,0.19993524,68225.0,68224.0,0.2306559]
[1730651644022,0.19216088,68225.0,68224.0,0.2306559]
[1730651644233,0.0636366,68225.0,68224.0,0.1573429]
[1730651644525,0.26856121,68225.0,68224.0,0.001]
[1730651644730,0.41137486,68225.0,68224.0,0.001]
[1730651644932,0.41137486,68225.0,68214.0,0.073324]
[1730651644933,0.073323,68215.0,68214.0,0.073324]
[1730651645120,0.073327,68211.0,68210.0,0.07351314]
[1730651645324,0.15305621,68211.0,68210.0,0.07351314]
[1730651645626,0.20183326,68211.0,68210.0,0.07351314]
[1730651646129,0.19114286,68211.0,68210.0,0.07351314]
[1730651646334,0.12950626,68211.0,68210.0,0.07351314]
[1730651646920,0.12850626,68211.0,68210.0,0.07351314]
[1730651648434,0.12668243,68211.0,68210.0,0.07351314]
[1730651648838,0.00192,68215.0,68214.0,0.073324]
[1730651649035,0.434106,68231.0,68229.0,0.073308]
[1730651649036,0.3608,68231.0,68229.0,0.073308]
[1730651649221,0.01703202,68230.0,68229.0,0.073308]
[1730651649426,0.00219947,68230.0,68229.0,0.073308]
[1730651650226,0.01619947,68230.0,68229.0,0.073308]
[1730651650742,0.01619947,68230.0,68219.0,0.52064943]
[1730651650743,0.43968,68229.0,68214.0,0.04328294]
[1730651651032,0.43275947,68230.0,68203.0,0.073335]
[1730651651033,0.4593977,68215.0,68203.0,0.073335]
[1730651651332,0.073331,68208.0,68205.0,0.073333]
[1730651651533,0.14456,68214.0,68201.0,0.00219921]
[1730651651737,0.073327,68212.0,68209.0,0.073329]
[1730651652139,0.073328,68211.0,68209.0,0.073329]
[1730651652932,0.04645506,68214.0,68209.0,0.073329]
[1730651653121,0.073328,68210.0,68209.0,0.073329]
[1730651653536,0.002,68211.0,68209.0,0.073329]
[1730651653738,0.002,68211.0,68210.0,0.073328]
[1730651654036,0.005,68211.0,68210.0,0.137428]
[1730651654540,0.002,68211.0,68210.0,0.137428]
[1730651654943,0.3608,68226.0,68210.0,1.11562515]
[1730651655126,0.3608,68226.0,68225.0,0.073312]
[1730651655435,0.3608,68239.0,68229.0,0.073308]
[1730651655636,0.073305,68232.0,68229.0,0.073308]
[1730651655842,0.01710632,68230.0,68229.0,0.073308]
[1730651656038,0.51518647,68230.0,68220.0,0.073317]
[1730651656343,0.073316,68221.0,68220.0,0.073317]
[1730651656641,0.073321,68217.0,68216.0,0.073321]
[1730651656837,0.11329502,68217.0,68215.0,0.31673534]
[1730651657137,0.11329602,68216.0,68215.0,0.073323]
[1730651657436,0.21248193,68216.0,68215.0,0.073323]
[1730651657835,0.13915993,68216.0,68215.0,0.073323]
[1730651658332,0.20076806,68216.0,68215.0,0.513123]
[1730651658536,0.20076806,68216.0,68215.0,0.73368183]
[1730651658537,0.14617602,68216.0,68215.0,0.73368183]
[1730651658727,0.1461671,68217.0,68215.0,0.73368183]
[1730651658923,0.1461671,68220.0,68215.0,0.29488183]
[1730651659125,0.1511671,68221.0,68220.0,0.073317]
[1730651659334,0.06050827,68233.0,68220.0,0.434117]
[1730651659533,0.0324,68241.0,68240.0,0.073296]
[1730651660240,0.3608,68251.0,68245.0,0.073291]
[1730651660241,0.05993078,68246.0,68245.0,0.073291]
[1730651660539,0.3608,68251.0,68250.0,0.073285]
[1730651661130,0.00220014,68253.0,68252.0,0.073283]
[1730651661932,0.12307833,68260.0,68259.0,0.073276]
[1730651662238,0.3608,68265.0,68264.0,0.07327]
[1730651663037,0.3608,68274.0,68269.0,0.073265]
[1730651663239,0.00184,68282.0,68273.0,0.073261]
[1730651663440,0.62345633,68291.0,68289.0,0.073243]
[1730651663441,0.0614336,68290.0,68289.0,0.073243]
[1730651663743,0.05253187,68290.0,68289.0,0.073243]
[1730651663943,0.05253187,68290.0,68279.0,0.073254]
[1730651663944,0.3608,68290.0,68279.0,0.073254]
[1730651664138,0.3608,68290.0,68289.0,0.073243]
[1730651664737,0.3748,68290.0,68289.0,0.074243]
[1730651665236,0.014,68290.0,68289.0,0.074243]
[1730651665837,0.014,68290.0,68289.0,0.435043]
[1730651666353,0.024,68290.0,68289.0,0.873363]
[1730651667234,0.024,68290.0,68289.0,1.09359452]
[1730651667747,0.024,68290.0,68289.0,1.20703452]
[1730651667936,0.01490012,68304.0,68289.0,1.43379152]
[1730651668137,0.3608,68309.0,68308.0,0.073223]
[1730651668840,0.3608,68309.0,68299.0,0.3608]
[1730651669150,0.073224,68308.0,68304.0,0.073227]
[1730651670237,0.073228,68303.0,68299.0,0.073232]
[1730651670438,0.3608,68302.0,68299.0,0.073232]
[1730651670847,0.3608,68302.0,68293.0,0.00219632]
[1730651671042,0.3608,68302.0,68289.0,0.0008]
[1730651671043,0.073242,68290.0,68289.0,0.0008]
[1730651671239,0.3608,68290.0,68283.0,0.07325]
[1730651671444,0.073248,68285.0,68279.0,0.073253]
[1730651672048,0.073248,68285.0,68277.0,0.31678013]
[1730651672250,0.3608,68290.0,68277.0,0.31678013]
[1730651672434,0.03944328,68289.0,68288.0,0.073244]
[1730651672639,0.073245,68288.0,68282.0,0.07325]
[1730651672839,0.073245,68288.0,68283.0,0.073249]
[1730651673051,0.002,68285.0,68283.0,0.073249]
[1730651673239,0.003,68285.0,68283.0,0.073249]
[1730651673549,0.3608,68284.0,68272.0,0.3608]
[1730651673743,0.3608,68284.0,68280.0,0.073253]
[1730651673954,0.3608,68284.0,68281.0,0.073252]
[1730651674446,0.434049,68284.0,68283.0,0.003]
[1730651674651,0.434049,68284.0,68282.0,0.073251]
[1730651674652,0.3608,68284.0,68282.0,0.073251]
[1730651674846,0.3608,68284.0,68283.0,0.07325]
[1730651675945,0.0324,68289.0,68288.0,0.073244]
[1730651677242,0.0344,68289.0,68288.0,0.073244]
[1730651677635,0.002,68289.0,68288.0,0.073244]
[1730651677949,0.002,68289.0,68272.0,0.434061]
[1730651677950,0.073245,68288.0,68272.0,0.073261]
[1730651678139,0.3608,68277.0,68271.0,0.07517876]
[1730651678446,0.0311,68276.0,68271.0,0.07517876]
[1730651678635,0.104357,68276.0,68271.0,0.07517876]
[1730651678833,0.08142623,68275.0,68272.0,0.073261]
[1730651679039,0.08142623,68275.0,68271.0,0.07517876]
[1730651679040,0.08142623,68274.0,68273.0,0.073261]
[1730651679544,0.04374716,68274.0,68273.0,0.073261]
[1730651679742,0.13118466,68274.0,68273.0,0.073261]
[1730651680045,0.13218466,68274.0,68273.0,0.079261]
[1730651680636,0.13118466,68274.0,68271.0,0.00516215]
[1730651680833,0.08142623,68273.0,68272.0,0.073262]
[1730651681245,0.001,68274.0,68272.0,0.073262]
[1730651681438,0.12921513,68273.0,68272.0,0.073262]
[1730651681945,0.12921513,68273.0,68265.0,0.3608]
[1730651681946,0.12921513,68273.0,68265.0,0.28326297]
[1730651682249,0.12921513,68272.0,68271.0,0.073263]
[1730651682440,0.14461595,68272.0,68271.0,0.073263]
[1730651682640,0.12492006,68272.0,68265.0,0.28326297]
[1730651682940,0.2696031,68271.0,68270.0,0.073264]
[1730651683341,0.12492006,68271.0,68270.0,0.073264]
[1730651684444,0.18068289,68271.0,68270.0,0.073264]
[1730651684856,0.26973875,68271.0,68270.0,0.073264]
[1730651685349,0.12692006,68271.0,68270.0,0.082264]
[1730651686050,0.18290946,68271.0,68270.0,0.082264]
[1730651686549,0.13098501,68271.0,68270.0,0.082264]
[1730651686852,0.002,68271.0,68270.0,0.082264]
[1730651687555,0.002,68271.0,68270.0,0.521704]
[1730651687847,0.001,68271.0,68270.0,0.521704]
[1730651688148,0.002,68271.0,68270.0,0.527704]
[1730651688852,0.002,68271.0,68270.0,0.088264]
[1730651692459,0.002,68271.0,68270.0,0.527704]
[1730651692662,0.002,68271.0,68270.0,0.74862918]
[1730651693153,0.002,68271.0,68270.0,0.088264]
[1730651694055,0.54078857,68271.0,68264.0,0.01501465]
[1730651694256,0.17798857,68270.0,68269.0,0.073265]
[1730651694950,0.17798857,68270.0,68269.0,0.00913279]
[1730651695157,0.17798857,68270.0,68269.0,0.073265]
[1730651695657,0.17898857,68270.0,68269.0,0.074265]
[1730651697253,0.17998857,68270.0,68269.0,0.083265]
[1730651700163,0.073265,68269.0,68255.0,0.00219749]
[1730651700457,0.434079,68256.0,68255.0,0.00219749]
[1730651700655,0.073286,68249.0,68248.0,0.07342195]
[1730651700856,0.61207457,68249.0,68248.0,0.07342195]
[1730651701055,0.61207457,68249.0,68248.0,0.04311709]
[1730651701654,0.53878857,68249.0,68248.0,0.48267709]
[1730651702050,0.19008796,68251.0,68250.0,0.073285]
[1730651702356,0.19008796,68251.0,68250.0,0.50979255]
[1730651702558,0.19008796,68251.0,68250.0,0.94844103]
[1730651703061,0.19008796,68251.0,68250.0,0.17143944]
[1730651703762,0.19008796,68251.0,68250.0,0.24351232]
[1730651703968,0.26337196,68251.0,68250.0,0.073285]
[1730651704156,0.26437196,68251.0,68250.0,0.073285]
[1730651704762,0.19208796,68251.0,68250.0,0.082285]
[1730651705456,0.19208796,68251.0,68250.0,0.081285]
[1730651705659,0.26537196,68251.0,68250.0,0.008]
[1730651706960,0.19208796,68251.0,68250.0,0.081285]
[1730651708971,0.19208796,68251.0,68250.0,0.17916786]
[1730651709557,0.19208796,68251.0,68250.0,0.26559283]
[1730651710566,0.19208796,68251.0,68250.0,0.17916786]
[1730651710770,0.19208796,68251.0,68250.0,0.19430869]
[1730651711368,0.19208796,68251.0,68250.0,0.19433755]
[1730651711863,0.001,68251.0,68250.0,0.08842583]
[1730651712063,0.002,68251.0,68250.0,0.19536498]
[1730651712979,0.075284,68251.0,68250.0,0.13032415]
[1730651713165,0.074284,68251.0,68250.0,0.080285]
[1730651713365,0.075284,68251.0,68250.0,0.089285]
[1730651714066,0.075284,68251.0,68250.0,0.095285]
[1730651714873,0.075284,68251.0,68250.0,0.080285]
[1730651714874,0.074284,68251.0,68250.0,0.080285]
[1730651715071,0.074284,68251.0,68250.0,0.086285]
[1730651715463,0.3608,68246.0,68227.0,0.11482685]
[1730651715666,0.7216,68228.0,68218.0,0.00076]
[1730651715871,0.3608,68219.0,68195.0,0.434144]
[1730651716061,0.3608,68205.0,68204.0,0.073335]
[1730651716671,0.3608,68205.0,68204.0,0.513175]
[1730651717972,0.3618,68205.0,68204.0,0.520175]
[1730651718173,0.3618,68205.0,68204.0,0.090335]
[1730651718475,0.3628,68205.0,68204.0,0.090335]
[1730651720276,0.796934,68205.0,68204.0,0.017]
[1730651720475,0.073338,68201.0,68200.0,0.1]
[1730651721678,0.074338,68201.0,68200.0,0.1]
[1730651722070,0.075338,68201.0,68200.0,0.104]
[1730651722468,0.002,68201.0,68200.0,0.177339]
[1730651724781,0.002,68201.0,68200.0,0.19239663]
[1730651724975,0.002,68201.0,68200.0,0.177339]
[1730651725677,0.72344,68205.0,68200.0,0.104]
[1730651725980,0.073338,68201.0,68200.0,0.104]
[1730651726783,0.794938,68201.0,68200.0,0.104]
[1730651727883,0.795938,68201.0,68200.0,0.104]
[1730651728881,0.795938,68201.0,68200.0,0.177339]
[1730651729274,0.795938,68201.0,68200.0,0.104]
[1730651730871,0.795938,68201.0,68200.0,0.177339]
[1730651731075,0.795938,68201.0,68161.0,0.10053233]
[1730651731076,0.07338,68162.0,68161.0,0.10053233]
[1730651731275,0.7216,68162.0,68161.0,0.17391333]
[1730651731486,0.7216,68162.0,68161.0,0.10053233]
[1730651731784,0.073356,68185.0,68161.0,0.10053233]
[1730651731785,0.3608,68168.0,68161.0,0.17391333]
[1730651732085,0.3608,68168.0,68167.0,0.073374]
[1730651732480,0.3608,68173.0,68172.0,0.073369]
[1730651732880,0.3608,68173.0,68172.0,0.513449]
[1730651733083,0.3109,68173.0,68172.0,0.513449]
[1730651733283,0.3608,68180.0,68179.0,0.073362]
[1730651733477,0.3608,68180.0,68179.0,0.513362]
[1730651733988,0.3608,68186.0,68179.0,0.513362]
[1730651734290,0.3608,68186.0,68185.0,0.073355]
[1730651734581,0.3608,68186.0,68185.0,0.513315]
[1730651734781,0.3608,68193.0,68192.0,0.073348]
[1730651735190,0.073372,68169.0,68166.0,0.3608]
[1730651735483,0.073374,68167.0,68166.0,0.3608]
[1730651735782,0.3608,68173.0,68166.0,0.3608]
[1730651735975,0.073369,68172.0,68166.0,0.3608]
[1730651736177,0.3608,68173.0,68166.0,0.3608]
[1730651736485,0.3608,68173.0,68170.0,0.073371]
[1730651736985,0.3608,68173.0,68172.0,0.073369]
[1730651737187,0.30940904,68173.0,68172.0,0.073369]
[1730651737589,0.31040904,68173.0,68172.0,0.073369]
[1730651737975,0.001,68173.0,68172.0,0.073369]
[1730651738489,0.3608,68183.0,68178.0,0.073363]
[1730651738688,0.3608,68180.0,68178.0,0.073363]
[1730651739087,0.3608,68180.0,68122.0,0.17996664]
[1730651739292,0.3608,68161.0,68151.0,0.08642082]
[1730651739491,0.434181,68161.0,68155.0,0.073387]
[1730651739876,0.073383,68159.0,68151.0,0.08642082]
[1730651740489,0.073383,68159.0,68151.0,0.15981182]
[1730651741183,0.3618,68161.0,68151.0,0.08642082]
[1730651741381,0.3618,68161.0,68160.0,0.073382]
[1730651741578,0.3608,68161.0,68160.0,0.073382]
[1730651741783,0.001,68159.0,68156.0,0.073386]
[1730651741992,0.001,68159.0,68157.0,0.073385]
[1730651742977,0.001,68159.0,68158.0,0.07558461]
[1730651743188,0.3618,68161.0,68158.0,0.00220061]
[1730651743387,0.3628,68161.0,68158.0,0.00220061]
[1730651743597,0.436181,68161.0,68158.0,0.00220061]
[1730651743791,0.38278713,68159.0,68158.0,0.00220061]
[1730651743985,0.434183,68159.0,68158.0,0.00220061]
[1730651744185,0.987783,68159.0,68158.0,0.00220061]
[1730651744589,0.987783,68159.0,68141.0,0.0322]
[1730651744590,0.146769,68158.0,68141.0,0.0322]
[1730651744885,0.3608,68142.0,68141.0,0.105602]
[1730651745088,0.28736403,68142.0,68141.0,0.105602]
[1730651745284,0.28736403,68142.0,68141.0,0.64365892]
[1730651745490,0.3608,68156.0,68155.0,0.073387]
[1730651745690,0.31674259,68156.0,68155.0,0.073387]
[1730651745892,0.003,68159.0,68158.0,0.073384]
[1730651746194,0.004,68161.0,68160.0,0.073382]
[1730651746393,0.3608,68162.0,68150.0,0.073392]
[1730651746394,0.3608,68162.0,68161.0,0.073381]
[1730651746785,0.434181,68162.0,68157.0,0.073385]
[1730651746984,0.073386,68157.0,68150.0,0.073392]
[1730651747183,0.3608,68162.0,68145.0,0.07210603]
[1730651747184,0.3608,68151.0,68145.0,0.07210603]
[1730651747393,0.3608,68151.0,68144.0,0.07210603]
[1730651747596,0.3608,68151.0,68141.0,0.0322]
[1730651747597,0.434193,68151.0,68147.0,0.073396]
[1730651747795,0.3608,68151.0,68141.0,0.0322]
[1730651748291,0.3608,68151.0,68150.0,0.073393]
[1730651748483,0.3618,68151.0,68150.0,0.073393]
[1730651748882,0.3608,68151.0,68150.0,0.073393]
[1730651749091,0.3618,68151.0,68150.0,0.073393]
[1730651749485,0.3608,68151.0,68150.0,0.073393]
[1730651749697,0.3618,68151.0,68150.0,0.073393]
[1730651750197,0.3628,68151.0,68142.0,0.0734]
[1730651750505,0.3628,68151.0,68134.0,0.01520602]
[1730651750506,0.3608,68143.0,68134.0,0.01520602]
[1730651750690,0.3608,68143.0,68132.0,0.00220136]
[1730651750691,0.07341,68134.0,68132.0,0.00220136]
[1730651751496,0.073411,68133.0,68132.0,0.00220136]
[1730651751701,0.073417,68128.0,68120.0,0.07210603]
[1730651752004,0.3608,68123.0,68122.0,0.073423]
[1730651753690,0.3608,68123.0,68120.0,0.073424]
[1730651753891,0.3608,68123.0,68121.0,0.073424]
[1730651754091,0.3618,68123.0,68121.0,0.073424]
[1730651754510,0.3628,68123.0,68121.0,0.073424]
[1730651754707,0.3628,68123.0,68113.0,0.07210603]
[1730651755008,0.3628,68123.0,68114.0,0.073432]
[1730651755305,0.3628,68123.0,68118.0,0.073426]
[1730651755503,0.3628,68123.0,68119.0,0.073426]
[1730651755706,0.3618,68123.0,68116.0,0.3608]
[1730651755893,0.002,68123.0,68122.0,0.073423]
[1730651757097,0.3608,68128.0,68127.0,0.073418]
[1730651757293,0.36288001,68134.0,68133.0,0.073411]
[1730651757600,0.00220261,68142.0,68133.0,0.073411]
[1730651757901,0.00220261,68142.0,68137.0,0.073406]
[1730651758096,0.07560461,68142.0,68137.0,0.073406]
[1730651758296,0.00220261,68142.0,68141.0,0.073402]
[1730651759993,0.3608,68144.0,68141.0,0.073402]
[1730651760197,0.3608,68144.0,68143.0,0.0734]
[1730651760702,0.3608,68153.0,68149.0,0.073394]
[1730651760908,0.3608,68153.0,68138.0,0.08652724]
[1730651760909,0.3608,68153.0,68150.0,0.073392]
[1730651761401,0.3608,68153.0,68150.0,0.073393]
[1730651761618,0.3608,68153.0,68144.0,0.07210603]
[1730651761619,0.073392,68151.0,68145.0,0.073397]
[1730651761900,0.3608,68146.0,68145.0,0.073397]
[1730651762095,0.3608,68146.0,68143.0,0.07210603]
[1730651762404,0.073401,68142.0,68136.0,0.07210603]
[1730651762602,0.3608,68140.0,68139.0,0.14551103]
[1730651762801,0.3608,68147.0,68143.0,0.073399]
[1730651763297,0.3608,68147.0,68141.0,0.07238835]
[1730651763494,0.3608,68147.0,68145.0,0.073398]
[1730651763703,0.35504,68147.0,68143.0,0.0734]
[1730651763999,0.35504,68147.0,68145.0,0.073398]
[1730651764197,0.073395,68148.0,68145.0,0.073398]
[1730651764395,0.3608,68146.0,68145.0,0.073398]
[1730651764901,0.3648,68146.0,68145.0,0.073398]